Cogmind - Beta 16 @@@ ROGUE MODE // 2025.12.02 @ 16:44:25 Player: Sir Cheese Result: Self-destructed Performance ------------- Evolutions (6) 3000 Regions Visited (6) 1200 Robots Destroyed (36) 180 Value Destroyed (1232) 1232 Prototype IDs (28) 560 Alien Tech Used (0) 0 Bonus (299) 299 TOTAL SCORE: 6471 Bonus ------- Registered with UFD 300 Friendly Fire -1 Cogmind --------- Core Integrity 1121/1150 Matter 151/300 Energy 24/315 System Corruption 1% Temperature Cool (0) Movement Walking (232) Location -4/Factory Parts ------- > --- POWER (2+1) ------ Light Ion Engine Improved Deuterium Engine > --- PROPULSION (4+1) - Multireflex Exoskeleton Myomer Leg Myomer Leg Gyrokinetic Inverter (+) > --- UTILITY (11+1) --- Power Amplifier Large Storage Unit Long-range Sensor Array Experimental Signal Interpreter Advanced Terrain Scan Processor 0b10 Decoder Chip [Scout] (+) Improved Melee Analysis Suite Hardened Light Armor Plating Improved Medium Armor Plating Layered Light Armor Plating Improved Shield Generator Rainbow Chip > --- WEAPON (2+1) ----- Companion Sword (+) > --- INVENTORY (15) --- Light Deuterium Engine Flexi-carbon Leg Advanced Heat Sink Seismic Detector Core Analyzer Improved Transmission Jammer Jamming Amplifier Point Defense System Hacking Suite Improved Corruption Screen Improved Corruption Screen Phase Gun Flak Gun Grenade Launcher Improved Plasma Cutter Peak State ------------ > --- POWER ------------ Light Ion Engine Improved Deuterium Engine > --- PROPULSION ------- Flexi-carbon Leg Multireflex Exoskeleton Myomer Leg Gyrokinetic Inverter > --- UTILITY ---------- Power Amplifier Large Storage Unit Long-range Sensor Array Experimental Signal Interpreter Advanced Terrain Scan Processor 0b10 Decoder Chip [Scout] Improved Melee Analysis Suite Hardened Light Armor Plating Improved Medium Armor Plating Layered Light Armor Plating Improved Shield Generator Rainbow Chip > --- WEAPON ----------- Wave Gun Companion Sword > --- INVENTORY -------- Light Deuterium Engine Myomer Leg Advanced Heat Sink Seismic Detector Core Analyzer Improved Transmission Jammer Jamming Amplifier Point Defense System Hacking Suite Improved Corruption Screen Improved Corruption Screen Phase Gun Flak Gun Grenade Launcher Improved Plasma Cutter [Rating: 115] Favorites ----------- Power Light Ion Engine Engine Light Ion Engine Propulsion Light Treads Treads Light Treads Leg Improved Aluminum Leg Wheel Subdweller Monowheel Hover Unit Gyrokinetic Inverter Flight Unit Nuclear Pulse Array Utility Rainbow Chip Device Seismic Detector Storage Large Storage Unit Processor Rainbow Chip Protection Layered Light Armor Plating Weapon Companion Sword Energy Gun Small Laser Energy Cannon Beam Cannon Ballistic Gun Battle Rifle Launcher Grenade Launcher Special Weapon Mining Laser Slashing Weapon Companion Sword Build | -11 -10 -10 -10 -7 -5 -4 ------- Run | Yrd Mat Min Sub Scr Fac Fac Slots Evolved 12 | . . . . . 10 2 Power 1 | . . . . . 1 . Propulsion 2 | . . . . . 2 . Utility 9 | . . . . . 7 2 Weapon . | . . . . . . . Parts Attached 50 | 5 3 6 6 5 19 6 Power 6 | 1 . 1 2 . 2 . Engine 6 | 1 . 1 2 . 2 . Core . | . . . . . . . Reactor . | . . . . . . . Propulsion 15 | 2 . . 2 1 7 3 Treads 2 | 2 . . . . . . Leg 7 | . . . . 1 3 3 Wheel 2 | . . . 2 . . . Hover 3 | . . . . . 3 . Flight 1 | . . . . . 1 . Utility 17 | 1 1 1 1 2 8 3 Device 6 | . 1 1 . . 3 1 Storage 2 | 1 . . . 1 . . Processor 5 | . . . 1 1 2 1 Hackware . | . . . . . . . Protection 4 | . . . . . 3 1 Artifact . | . . . . . . . Weapon 12 | 1 2 4 1 2 2 . Energy Gun 2 | 1 . . . . 1 . Energy Cannon 2 | . . 2 . . . . Ballistic Gun 4 | . 1 . 1 1 1 . Ballistic Cannon . | . . . . . . . Launcher 2 | . . 2 . . . . Special Weapon 1 | . 1 . . . . . Impact Weapon . | . . . . . . . Slashing Weapon 1 | . . . . 1 . . Piercing Weapon . | . . . . . . . Special Melee Weapon . | . . . . . . . Unidentified Prototypes 2 | . . . . 1 . 1 Parts Lost 5 | . . 1 2 . 2 . Power 1 | . . . . . 1 . Propulsion 2 | . . . 2 . . . Utility 1 | . . . . . 1 . Weapon 1 | . . 1 . . . . Highest Loss Streak 1 | . . 1 1 . 1 . To Critical Strikes . | . . . . . . . Average Backups 9 | 2 5 7 7 10 12 13 Power 1 | . 1 1 1 1 1 . Propulsion . | . . . . . 1 1 Utility 4 | . 2 2 2 4 5 6 Weapon 4 | 1 2 4 3 4 3 3 Tool/Special . | . . . . . . . Unused Backups 16 | . 1 1 . 1 . 13 Power 1 | . . . . . . 1 Propulsion . | . . . . . . . Utility 12 | . 1 1 . . . 10 Weapon 2 | . . . . 1 . 1 Tool/Special 1 | . . . . . . 1 Average Slot Usage (%) 70 | . 97 99 83 59 63 80 Engine 9 | . 14 14 12 9 4 8 Treads 10 | . 28 28 15 9 . . Leg 4 | . . . . 4 8 14 Wheel 1 | . . . 4 1 . . Device 5 | . 12 14 9 . 10 14 Storage 9 | . 14 14 12 9 4 4 Processor 10 | . . . 2 12 18 19 Protection 1 | . . . . . 4 8 Energy Gun 1 | . 14 . 1 . . 1 Energy Cannon 2 | . . 17 8 . . . Ballistic Gun 5 | . 12 4 9 4 . . Launcher 3 | . . 5 3 4 . . Slashing Weapon 3 | . . . . 5 4 4 Peak Build Rating 115 | 5 8 10 22 33 90 115 Average Rating 29 | 4 7 8 12 26 62 98 On Entrance 23 | . 5 8 10 22 32 85 Avg Prop Armor Cover (%) 9 | . . . 4 11 4 . Naked Turns . | . . . . . . . Heaviest Build 65 | 11 13 17 17 32 64 65 Greatest Support 86 | 40 40 40 40 20 73 86 Greatest Overweight (x) 2 | . . . . 1 2 . Average Overweight (x) . | . . . . . . . Largest Inventory Capacity 15 | 8 8 8 8 15 15 15 Average Capacity 11 | 7 8 8 8 12 15 15 Most Carried 15 | 5 8 8 8 15 15 15 Average Carried 9 | 2 5 7 7 10 13 13 Final Capacity 15 | 8 8 8 8 15 15 15 Final Carried 15 | 5 8 8 8 14 10 15 Class Distribution -------------------- 92% | Mutant 7% | Scavenger-Mutant Dominant Class ---------------- Mutant | -10/Materials Mutant | -10/Mines Mutant | -10/Subcaves Mutant | -7/Scraptown Mutant | -5/Factory Scavenger-Mutant | -4/Factory Resources | -11 -10 -10 -10 -7 -5 -4 ----------- Run | Yrd Mat Min Sub Scr Fac Fac Matter Collected 1064 | 114 61 183 280 118 253 55 Remotely . | . . . . . . . Salvage Created 1244 | 28 94 226 242 . 452 202 Parts 67 | 5 3 12 15 . 24 8 Haulers Intercepted . | . . . . . . . Recyclers Shooed . | . . . . . . . Parts Field Recycled . | . . . . . . . Retrieved Matter . | . . . . . . . Parts Self-Destructed 5 | . . . 5 . . . Prevented . | . . . . . . . Parts Restored . | . . . . . . . Kills | -11 -10 -10 -10 -7 -5 -4 ------- Run | Yrd Mat Min Sub Scr Fac Fac Combat Hostiles Destroyed 27 | . 2 6 13 . 4 2 Melee 5 | . . . . . 4 1 Guns 7 | . 2 2 2 . . 1 Cannons 4 | . . 2 2 . . . AOE 10 | . . 1 9 . . . Classes Destroyed 13 | 1 2 1 2 . 5 2 Builder 1 | . . 1 . . . . Tunneler 2 | 2 . . . . . . Recycler 1 | . . . . . 1 . Mechanic 1 | . . . . . . 1 Operator 2 | . 1 . . . 1 . Watcher 2 | . . . . . 2 . Swarmer 7 | . . . 7 . . . Grunt 8 | . 2 6 . . . . Sentry 1 | . . . . . 1 . Specialist 2 | . . . . . . 2 Hunter 1 | . . . . . 1 . Programmer 2 | . . . . . 2 . Subdweller 6 | . . . 6 . . . Best Kill Streak 4 | 2 2 3 4 . 3 1 Combat Bots Only 4 | . 2 2 4 . 2 1 Max Kills in Single Turn 3 | 1 1 1 3 . 1 1 Gunslinging . | . . . . . . . Exploded 3 | . . 1 3 . . . Melee 1 | . . . . . 1 1 Uniques/NPCs Destroyed . | . . . . . . . Combat | -11 -10 -10 -10 -7 -5 -4 -------- Run | Yrd Mat Min Sub Scr Fac Fac Hostile Shots Fired 285 | . 21 35 54 . 32 143 Missed 105 | . 2 9 23 . 10 61 Deflected 3 | . . . . . . 3 Hits 180 | . 19 26 31 . 22 82 Projectile 180 | . 19 26 31 . 22 82 AOE 1 | . . . . . . 1 Critical Strikes 1 | . . 1 . . . . Damage Taken 2159 | . 203 367 373 . 508 708 Core 332 | . 75 43 50 . 135 29 Absorbed by Shields 214 | . . . . . . 214 Core Remaining (%) 72 | 100 . . . 32 86 . Volleys Fired 87 | 6 16 23 31 . 6 5 Largest 2 | 1 2 2 2 . 2 1 Hottest 120 | 40 100 120 120 . 109 81 Shots Fired 144 | 6 30 38 56 . 9 5 Gun 77 | 6 28 5 24 . 9 5 Cannon 45 | . . 28 17 . . . Launcher 18 | . . 5 13 . . . Special 4 | . 2 . 2 . . . Kinetic 45 | . 14 5 20 . 6 . Thermal 81 | 6 16 28 23 . 3 5 Explosive 18 | . . 5 13 . . . Electromagnetic . | . . . . . . . Robot Hit Streak 10 | 1 7 10 10 . 8 5 Robot Miss Streak 6 | 2 2 4 3 . 6 . Penetration Max . | . . . . . . . Secondary Targets 1 | . 1 . . . . . Max Gunslinging Chain 1 | . 1 . . . . . Shots Hit Robots 118 | 3 20 26 32 . 24 13 Core Hits 60 | 2 7 13 20 . 14 4 Critical Kills 1 | . . 1 . . . . Critical Parts Destroyed . | . . . . . . . Critical Strikes 1 | . . 1 . . . . Meltdown 1 | . . 1 . . . . Melee Attacks 34 | . . . . . 26 8 Impact . | . . . . . . . Slashing 34 | . . . . . 26 8 Piercing . | . . . . . . . Sneak Attacks 4 | . . . . . 3 1 Combat Hostiles 1 | . . . . . 1 . Follow-up Attacks . | . . . . . . . Martial Strikes 2 | . . . . . . 2 Damage Inflicted 3365 | 32 223 625 1049 . 945 491 Guns 699 | 32 223 40 181 . 104 119 Cannons 615 | . . 371 244 . . . Explosions 838 | . . 214 624 . . . Melee 1213 | . . . . . 841 372 Ramming . | . . . . . . . Kinetic 324 | . 79 40 148 . 57 . Thermal 990 | 32 144 371 277 . 47 119 Explosive 838 | . . 214 624 . . . Electromagnetic . | . . . . . . . Impact . | . . . . . . . Slashing 1213 | . . . . . 841 372 Piercing . | . . . . . . . Highest Corruption 3 | . . . . . 3 1 Average Corruption 2 | . . . . . 2 1 Corruption Purged . | . . . . . . . Corruption Blocked . | . . . . . . . Effects 4 | . . . . . 3 1 Message Errors 3 | . . . . . 2 1 Data Loss (minor) 1 | . . . . . 1 . Overload Shots . | . . . . . . . Overflow Damage 42 | . . . . . 42 . Projectiles . | . . . . . . . Explosions . | . . . . . . . Melee 42 | . . . . . 42 . Knockbacks . | . . . . . . . Impact . | . . . . . . . Kinetic . | . . . . . . . Secondary . | . . . . . . . Self-Inflicted Damage 31 | . . 6 25 . . . Shots 2 | . . 1 1 . . . Rammed . | . . . . . . . Targets Rammed . | . . . . . . . Kicked . | . . . . . . . Crushed . | . . . . . . . Highest Temperature 237 | . 148 166 . . 111 237 Average Temperature 71 | . 63 69 . . 52 120 Received Heat Transfer 453 | . 114 225 42 . 54 18 Siege Activations . | . . . . . . . Martial Activations 2 | . . . . . . 2 Total Turns 62 | . . . . . . 62 Longest Duration 60 | . . . . . . 60 Shielding Activations . | . . . . . . . Robots Disrupted . | . . . . . . . Combat Hostiles . | . . . . . . . Robots Corrupted . | . . . . . . . Combat Hostiles . | . . . . . . . Parts Fried . | . . . . . . . Impact Corruptions . | . . . . . . . Robots Melted 1 | . . 1 . . . . Combat Hostiles 1 | . . 1 . . . . Parts Melted 2 | . . . 1 . 1 . Heat Transferred 2029 | 75 325 777 593 . 74 185 Parts Sabotaged . | . . . . . . . Parts Stolen . | . . . . . . . Parts Stripped . | . . . . . . . Power Chain Reactions . | . . . . . . . Alert | -11 -10 -10 -10 -7 -5 -4 ------- Run | Yrd Mat Min Sub Scr Fac Fac Maximum Alert Level . | . . . . . . . Low Security (%) 100 | 100 100 100 . . 100 100 Level 1 . | . . . . . . . Level 2 . | . . . . . . . Level 3 . | . . . . . . . Level 4 . | . . . . . . . Level 5 . | . . . . . . . High Security . | . . . . . . . Max Security . | . . . . . . . Peak Influence 116 | 5 50 116 . . 54 40 Initial 16 | . . . . . . 16 Average 17 | 1 8 81 . . 10 5 Influence Increases 727 | 10 60 216 210 . 176 55 Destroy 0b10 Robot/C 420 | . 40 120 140 . 80 40 Destroy 0b10 Robot/NC 45 | 10 5 5 . . 20 5 Destroy Leader 94 | . 10 30 10 . 34 10 Successful Hack 3 | . 3 . . . . . Disable Machine 45 | . . 30 . . 15 . Destroy Structure 45 | . 2 31 . . 12 . Partial Spotted 15 | . . . . . 15 . Lose Combat Pursuer 60 | . . . 60 . . . Influence Decreases 697 | 10 60 130 296 . 141 60 Entered New Map 65 | . . . 46 . . 19 Time Decay 610 | 10 60 120 248 . 131 41 Lost Part 22 | . . 10 2 . 10 . Squads Dispatched 9 | . 1 . . . 5 3 Investigation 2 | . . . . . 1 1 Extermination 2 | . . . . . 1 1 Reinforcement 4 | . 1 . . . 2 1 Assault . | . . . . . . . Garrison 1 | . . . . . 1 . Intercept . | . . . . . . . Searches Triggered . | . . . . . . . Construction Impeded . | . . . . . . . Haulers Reinforced . | . . . . . . . Active Scanning Responses . | . . . . . . . Cargo Convoy Interrupts . | . . . . . . . Stealth | -11 -10 -10 -10 -7 -5 -4 --------- Run | Yrd Mat Min Sub Scr Fac Fac Distress Signals 1 | . 1 . . . . . Communications Jammed . | . . . . . . . Distress Signals . | . . . . . . . Times Spotted 40 | . 5 6 14 . 7 8 Peak Tracking Total 7 | . 3 2 6 . 5 7 Tactical Retreats 2 | . . . 2 . . . Traps | -11 -10 -10 -10 -7 -5 -4 ------- Run | Yrd Mat Min Sub Scr Fac Fac Traps Triggered . | . . . . . . . Indirectly . | . . . . . . . Trap Hack Attempts . | . . . . . . . Triggered . | . . . . . . . Disarmed . | . . . . . . . Reprogrammed . | . . . . . . . Reused . | . . . . . . . Traps Extracted . | . . . . . . . Installed . | . . . . . . . Triggered . | . . . . . . . Machines | -11 -10 -10 -10 -7 -5 -4 ---------- Run | Yrd Mat Min Sub Scr Fac Fac Machines Disabled 5 | . . 2 2 . 1 . Max in Single Turn 2 | . . 2 1 . 1 . Machines Repaired . | . . . . . . . Machines Dismantled . | . . . . . . . Machines Sabotaged . | . . . . . . . Overloaded Fab Kills . | . . . . . . . Hacking | -11 -10 -10 -10 -7 -5 -4 --------- Run | Yrd Mat Min Sub Scr Fac Fac Machines Accessed 14 | . 2 . 2 5 4 1 Terminals 4 | . 1 . . . 3 . Fabricators 1 | . . . . . 1 . Repair Stations . | . . . . . . . Recycling Units 1 | . 1 . . . . . Scanalyzers . | . . . . . . . Garrison Access 1 | . . . . . . 1 Total Hacks 50 | . 6 . 12 23 7 2 Successful 39 | . 3 . 12 23 1 . Failed 11 | . 3 . . . 6 2 Catastrophic 5 | . 2 . . . 2 1 Database Lockouts . | . . . . . . . Manual 4 | . 4 . . . . . Terminals 10 | . 4 . . . 6 . Fabricators 1 | . . . . . 1 . Repair Stations . | . . . . . . . Recycling Units 2 | . 2 . . . . . Scanalyzers . | . . . . . . . Garrison Access 2 | . . . . . . 2 Terminal Hacks 37 | . 1 . 12 23 1 . Record 26 | . . . 11 14 1 . Robot Analysis 7 | . . . . 7 . . Open Door 1 | . . . . 1 . . Zone Layout 1 | . 1 . . . . . Proto ID Catalog 2 | . . . 1 1 . . Fabricator Hacks . | . . . . . . . Repair Station Hacks . | . . . . . . . Recycling Unit Hacks 1 | . 1 . . . . . Report Inventory 1 | . 1 . . . . . Scanalyzer . | . . . . . . . Garrison Access Hacks . | . . . . . . . Unauthorized Hacks 1 | . 1 . . . . . Terminals . | . . . . . . . Fabricators . | . . . . . . . Repair Stations . | . . . . . . . Recycling Units 1 | . 1 . . . . . Monitor 1 | . 1 . . . . . Scanalyzers . | . . . . . . . Garrison Access . | . . . . . . . Data Cores Recovered . | . . . . . . . Used . | . . . . . . . Hacking Detections 6 | . 1 . . . 4 1 Full Trace Events 2 | . . . . . 1 1 Feedback Events . | . . . . . . . Feedback Blocked . | . . . . . . . Robot Schematics Acquired . | . . . . . . . Robots Built . | . . . . . . . Authchips . | . . . . . . . Time . | . . . . . . . Total Robot Build Rating . | . . . . . . . Part Schematics Acquired . | . . . . . . . Parts Built . | . . . . . . . Authchips . | . . . . . . . Time . | . . . . . . . Total Part Build Rating . | . . . . . . . Part Studies Acquired . | . . . . . . . Parts Repaired . | . . . . . . . Time . | . . . . . . . Parts Recycled . | . . . . . . . Recycled Matter . | . . . . . . . Retrieved Matter . | . . . . . . . Retrieved Components . | . . . . . . . Parts Scanalyzed . | . . . . . . . Part Schematics Acquired . | . . . . . . . Parts Damaged . | . . . . . . . Bothacking | -11 -10 -10 -10 -7 -5 -4 ------------ Run | Yrd Mat Min Sub Scr Fac Fac Used RIF Installer . | . . . . . . . Robots Hacked . | . . . . . . . Non-combat . | . . . . . . . Combat . | . . . . . . . Robot Hacks Applied . | . . . . . . . Relay Couplers Released . | . . . . . . . Fabnet Peak Effective % . | . . . . . . . Robots Rewired . | . . . . . . . Allies Hacked . | . . . . . . . Hacks Repelled . | . . . . . . . Allies | -11 -10 -10 -10 -7 -5 -4 -------- Run | Yrd Mat Min Sub Scr Fac Fac Total Allies . | . . . . . . . Largest Group . | . . . . . . . Highest-Rated Group . | . . . . . . . Highest-Rated Ally . | . . . . . . . Total Orders . | . . . . . . . Ally Attacks . | . . . . . . . Total Damage . | . . . . . . . Kills . | . . . . . . . Allies Corrupted . | . . . . . . . Allies Melted . | . . . . . . . Intel | -11 -10 -10 -10 -7 -5 -4 ------- Run | Yrd Mat Min Sub Scr Fac Fac Active Infowar (turns) 3665 | . 325 160 861 1178 787 354 Sensors 207 | . . . . . . 207 Terrain 580 | . . . . . 580 . Seismic 2367 | . 325 160 861 . 727 294 Decoding 2319 | . . . . 1178 787 354 Robot Analysis Total 7 | . . . . 7 . . Derelict Logs Recovered 2 | . . . 1 1 . . Drone Launches . | . . . . . . . Drone Recoveries . | . . . . . . . Decoded 0b10 Intel 24 | . . . . . 17 7 Traps 15 | . . . . . 12 3 Emergency Access 9 | . . . . . 5 4 Exploration | -11 -10 -10 -10 -7 -5 -4 ------------- Run | Yrd Mat Min Sub Scr Fac Fac Turns Passed 6288 | 136 344 245 1321 3101 787 354 Spaces Moved 3461 | 73 179 110 770 1680 418 231 Core 4 | 4 . . . . . . Treads 2233 | 69 179 110 724 1139 12 . Legs 624 | . . . . . 393 231 Wheels 587 | . . . 46 541 . . Hover 13 | . . . . . 13 . Flight . | . . . . . . . Fastest Speed 50 | 50 160 160 110 110 65 116 Average Speed 166 | 153 160 160 157 183 149 121 Slowest Speed 260 | 160 160 160 160 240 260 232 Overloaded Moves 8 | . . . . . . 8 Propulsion Burnouts . | . . . . . . . Robots Hopped . | . . . . . . . Potential Cave-ins . | . . . . . . . Cave-ins Triggered . | . . . . . . . Exploration Rate (%) 28 | 4 35 25 36 83 12 6 Regions Visited 6 Branch Regions 3 Pre-discovered Areas 1 | . . . 1 . . . Known Exits Taken . | . . . . . . . Unknown Exits Taken 6 | 1 1 1 1 1 1 . Scrap Searched 6 | . . . 2 4 . . Spaces Dug 8 | . 2 . . . 6 . Terrain Destroyed 88 | . 2 34 46 . 6 . Melee 6 | . . . . . 6 . Projectile 2 | . 2 . . . . . AOE 80 | . . 34 46 . . . Terrain Rammed . | . . . . . . . Walls Destroyed . | . . . . . . . Machines Disabled . | . . . . . . . Actions | -11 -10 -10 -10 -7 -5 -4 --------- Run | Yrd Mat Min Sub Scr Fac Fac Total 3793 | 88 205 142 820 1708 536 294 Wait 37 | . . . . . 20 17 Move 3455 | 72 178 109 769 1679 417 231 Hop . | . . . . . . . Pick Up 61 | 5 6 2 3 14 16 15 Fast Attach 13 | 5 . . 2 1 5 . Attach 37 | . 2 1 1 4 25 4 Detach 10 | . . . . 2 7 1 Swap 25 | . 2 5 10 1 3 4 Drop 35 | . 1 2 4 6 11 11 Fire 87 | 6 16 23 31 . 6 5 Melee 32 | . . . . . 26 6 Ram . | . . . . . . . Kick . | . . . . . . . Crush . | . . . . . . . Escape Stasis . | . . . . . . . Rewire 1 | . . . . 1 . . Trap . | . . . . . . . Miscellaneous . | . . . . . . . Route ------- -11/Scrapyard -10/Materials -10/Mines -10/Subcaves (discovered 3 exits: [*Mat] / [*Rec] / *Scr) -7/Scraptown -5/Factory -4/Factory History --------- Turn | Location | Event 11 | -11/Scrapyard | Discovered new exit (range 15) 137 | -11/Scrapyard | Entered Materials 317 | -10/Materials | Build established: Mutant 379 | -10/Materials | Discovered new exit (range 16) 481 | -10/Materials | Entered Mines 716 | -10/Mines | Discovered new exit (range 6) 726 | -10/Mines | Entered Subcaves 727 | -10/Subcaves | Approached by a straggling Scientist 745 | -10/Subcaves | Core integrity fell below 50% 810 | -10/Subcaves | Learned location of Storage (-7) 1488 | -10/Subcaves | Discovered new exit (range 12) 1621 | -10/Subcaves | Visited 4L-MR0's lab 1640 | -10/Subcaves | Found Rainbow Chip 1642 | -10/Subcaves | Attached Rainbow Chip, gained temporary slots: Power, Propulsion, Utility, Weapon 1797 | -10/Subcaves | Visited Clippyterm 1802 | -10/Subcaves | Learned Research security intel 1946 | -10/Subcaves | Discovered new exit (range 16) 2039 | -10/Subcaves | Scientist uncovered a shortcut to Scraptown 2047 | -10/Subcaves | Entered Scraptown 2182 | -7/Scraptown | Visited Shadow of the Wyrm 2201 | -7/Scraptown | Visited CPS Storage 2220 | -7/Scraptown | Visited Symbiants 2266 | -7/Scraptown | Scanned Subdweller tech in exchange for log data 2270 | -7/Scraptown | Learned Factory stockpile data 2284 | -7/Scraptown | Discovered new exit (range 13) 2697 | -7/Scraptown | Visited UFD Registry 2697 | -7/Scraptown | Registered with UFD as "Bulletninja" 2747 | -7/Scraptown | Visited Cartography Club 2830 | -7/Scraptown | Visited Analyses Database 2897 | -7/Scraptown | Visited Curators Association 2949 | -7/Scraptown | Visited Scrapoid Research Area 2988 | -7/Scraptown | Visited Research Penetration Think Tank 3047 | -7/Scraptown | Visited Science Guys 3375 | -7/Scraptown | Visited Sword Containment 3399 | -7/Scraptown | Found Prototype Slashing Weapon 3400 | -7/Scraptown | Identified Companion Sword 3468 | -7/Scraptown | Visited Infowarlord's Domain 3521 | -7/Scraptown | Visited Junk Repository 5148 | -7/Scraptown | Entered Factory 5148 | -5/Factory | Evolved 10 slots: Power x1, Propulsion x2, Utility x7 5867 | -5/Factory | Discovered new exit (range 16) 5909 | -5/Factory | Garrison activated, responded to threat 5935 | -5/Factory | Entered another Factory area 5935 | -4/Factory | Evolved 2 slots: Utility x2 5942 | -4/Factory | Found Exp. Signal Interpreter 6104 | -4/Factory | Build established: Scavenger-Mutant 6289 | -4/Factory | Self-destructed Last Messages --------------- X-82 Rainmaker destroyed. Martial strike on X-82 Rainmaker. >> DECODED: Ambush Trap location. Nuclear Reactor explodes. X-82 Rainmaker destroyed. Penetrated by Slug. Dropped Flexi-carbon Leg. Nuclear Reactor explodes. Dropped Flexi-carbon Leg. Acquired Myomer Leg. Dropped Wave Gun. T-07 Excavator destroyed. >> DECODED: Ambush Trap location. Slug penetrates Wall. Deflected attack with Companion Sword. [Achievement: Physics Protects] H06AMH%ZFW TI= ,RV%TWDQXXB/0JIY L Penetrated by Slug. Deflected attack with Companion Sword. The unstable cave ceiling collapses. Map ----- +----------------------------------------------------+ | ??########????# #?????#?????????????? | | ??# #????# ##### #####+###?????? | | ??# "" #????# ????? | | ??#! ""S #????# ????? | | ??# "" #????# ????? | | ??# #????# ????? | | ??# #????# ###############?????? | | ??####+######## #???????????????????? | | ?????# #???????????????????? | | ?????# g#???????????????????? | | ?????# #???????????????????? | | ?????# #???????????????????? | | ????##+##### g #???????????????????? | | ????# * # #?????g?????????????? | | ????# + p#???????????????????? | | ????#! """ #gpg #???????????????????? | | ????# G" # #???????????????????? | | ????# """ + #???????????????????? | | ????# # #???????k???????????? | | ????######## #???????????????????? | | ???????????; #???????????????????? | | ??#########; #???????????????????? | | ?? # #???????????????????? | | ??""" """ #% #???????????????????? | | # """ """ ; #???????????????????? | | """ """ @ ####????????????????? | | #????????????????? | | =*| #????????????????? | | ==][% #????????????????? | | = %%= #????????????????? | | # = ] #????????????????? | | #????????????????? | | #????????????????? | | " "" #???t????????????? | | # "R"" # ;#???????????????? | | # """ # H ??????????????? | | # # ?????????????^ | | ?########### ??????????^^ | | ???????????# ??????????? | | ???????????# ??????????? | | ???????????# ??????????? | | ???????????# ???????????? | | ???????????########## ???????????? | | ?????????????????????##?????????????? | | ????????????????????????????????????? | | ????????????????????????????????????? | | ????????????????????????????????????? | | ????????????????????????????????????? | | ????????????????????????????????????? | | ????????????????????????????????????? | +----------------------------------------------------+ Best States ------------- Heat Dissipation 43 Energy Generation 24 Energy Capacity 315 Matter Stores 300 Matter Capacity 300 Sight Range 16 Robot Scan Range 18 Terrain Scan Range 16 Terrain Scan Density 210 Power Amplification 20 Armor Coverage 525 Evasion (%) 55 Melee Accuracy 6 Recoil Reduction 2 Item Schematics ----------------- None Robot Schematics ------------------ None Fabricated ------------ Nothing Repaired ---------- Nothing Studied --------- None Alien Tech Used ----------------- None Achievements -------------- Physics Protects Challenges ------------ None Game ------ Seed WarpProjectileStatue Manual? 0 Play Time 00:47:50 Cumulative 39.0 hours Start 2025.11.18 @ 16:50:24 End 2025.12.02 @ 16:44:25 Sessions 3 Manual Loads 0 Difficulty Rogue Special Mode None Game No. 37 Rogue 9 Adventurer 21 Explorer 7 Win Type - Total 1 Types 1/0/0/0/0/0/0/0/0/0 Lore% 41 Gallery% 39 Achievement% 32 Wizard Run 0 Options --------- Layout 1 ASCII 0 Keyboard 0 Movement Mouse Keybinds 0 Fullscreen 1 Font 48/Smallcaps Map View 50x35 Zoom Use 0% Tactical HUD 0 Map Filters NONE Filters NONE Steam 1 RUN: 66f9d0bb-359c-4b40-a7f6-2e7ba51e47ec